[Event "European Women-ch 2023"]
[Site "Petrovac"]
[Date "2023.03.21"]
[Round "4.5"]
[White "Olde, Margareth"]
[Black "Balajayeva, Khanim"]
[Result "1/2-1/2"]
[ECO "D12"]
[WhiteElo "2234"]
[BlackElo "2372"]
[Annotator "TA"]
[PlyCount "103"]
[EventDate "2023.03.15"]
[EventType "swiss"]
[EventCountry "MNE"]
[SourceTitle "playchess.com"]
[Source "ChessBase"]
[SourceQuality "1"]
[TimeControl "40/5400+30:1800+30"]

{[%evp 15,103,29,25,18,26,14,17,11,13,2,11,0,1,-8,8,12,42,18,68,-14,-23,-32,0,0,11,-27,0,-50,-26,-41,-37,-60,-60,-60,-54,-62,-62,-62,-62,-62,-62,-62,-62,-62,-24,-16,-16,-23,-6,-6,0,0,0,-6,-6,-6,-6,-6,-6,-6,-6,-6,-3,-3,-3,-3,-3,-3,-3,-3,-3,-3,-3,-3,-3,-3,-3,-6,-6,-6,-3,-3,-3,-3,-3,-3,-3,-3,-3,-3]} 1. d4 {[%emt 0:00:02]} d5 {[%emt 0:00:15]} 2. Nf3 {[%emt 0:00:06]} Nf6 {[%emt 0:00:49]} 3. c4 {[%emt 0:00:15]} c6 {[%emt 0:00:22]} 4. e3 {[%emt 0:00:21]} Bf5 {[%emt 0:00:28]} 5. Nc3 {[%emt 0:00:12]} e6 {[%emt 0:00:33]} 6. Nh4 {[%emt 0:00:27]} Be4 {[%emt 0:00:39]} 7. f3 {[%emt 0:00:10]} Bg6 {[%emt 0:00:04]} 8. Qb3 {[%emt 0:00:43]} Qc7 {[%emt 0:00:33]} 9. Bd2 {[%emt 0:01:59] D12: Slav Defence: 3 Nf3 Nf6 4 e3 Bf5.} Be7 {[%emt 0:00:39]} 10. g3 {[%emt 0:02:14]} O-O {[%emt 0:01:06]} 11. Nxg6 {[%emt 0:01:03]} hxg6 {[%emt 0:00:04]} 12. Rc1 {[%emt 0:02:14] White wants to play cxd5.} dxc4 {[%emt 0:00:37]} 13. Qxc4 {[%emt 0:04:22]} Nbd7 {[%emt 0:07:27] [#]} 14. Bg2 $146 {[%emt 0:14:26]} ({Predecessor:} 14. Bd3 a6 15. Ne4 c5 16. Nxf6+ Bxf6 17. O-O Rac8 18. Be4 Qb8 19. Qa4 Rfd8 20. Ba5 {0-1 Antic,D (2418)-Lekic,D (2320) Belgrade-chT Quality 2022 (6.3)}) 14... Rad8 {[%emt 0:16:13]} 15. f4 {[%emt 0:05:56]} a6 {[%emt 0:04:53]} 16. b4 {[%emt 0:07:20]} Qd6 {[%emt 0:07:44]} ({Better is} 16... b5 $11 17. Qxc6 Qxc6 18. Bxc6 Bxb4) 17. Ne4 {[%emt 0:07:16]} (17. Qb3 $14) 17... Nxe4 $11 {[%emt 0:01:31]} 18. Bxe4 {[%emt 0:00:04]} Nb6 {[%emt 0:13:24]} 19. Qb3 {[%emt 0:05:31]} g5 {[%emt 0:05:49]} 20. O-O {[%emt 0:04:17]} Nd5 {[%emt 0:05:37]} 21. a3 {[%emt 0:01:54]} ({White should try} 21. fxg5 $11 Bxg5 22. Rc5) 21... f5 {[%emt 0:03:45]} 22. Bg2 {[%emt 0:00:36]} gxf4 {[%emt 0:01:25]} 23. Bxd5 {[%emt 0:05:04]} cxd5 {[%emt 0:06:02]} 24. gxf4 {[%emt 0:03:57]} Rc8 {[%emt 0:08:03]} 25. b5 {[%emt 0:18:53]} Qxa3 {[%emt 0:04:45]} 26. Qxa3 {[%emt 0:00:05]} Bxa3 {[%emt 0:00:02]} 27. Rxc8 {[%emt 0:02:25]} Rxc8 {[%emt 0:00:03]} 28. bxa6 {[%emt 0:01:30]} bxa6 $15 {[%emt 0:00:09][%mdl 4096] Endgame KRB-KRB} 29. Ra1 {[%emt 0:00:14]} Be7 {[%emt 0:06:43]} (29... Rc2 $5 {[%cal Ra3b2]} 30. Rxa3 Rxd2 $17) 30. Rxa6 {[%emt 0:00:23]} Rc2 {[%emt 0:00:30]} 31. Ba5 {[%emt 0:01:29]} Kf7 {[%emt 0:01:40] ...Bh4 would be deadly.} (31... Ra2 $5 {[%cal Re7b4]} 32. Rxe6 Kf7 $15) 32. Ra7 {[%emt 0:00:50] The position is equal.} Ke8 {[%emt 0:01:58]} 33. Ra8+ {[%emt 0:00:09]} Kf7 {[%emt 0:00:10] Threatens to win with ...Bh4.} 34. Ra7 {[%emt 0:00:05]} Ra2 {[%emt 0:01:20]} 35. Bb6 {[%emt 0:00:31]} Rxa7 {[%emt 0:00:47]} 36. Bxa7 $11 {[%emt 0:00:04] KB-KB} Ke8 {[%emt 0:00:24]} 37. Bb8 {[%emt 0:01:15]} Kd7 {[%emt 0:01:04]} 38. Be5 {[%emt 0:00:17]} g6 {[%emt 0:00:06]} 39. Kf2 {[%emt 0:00:36]} Kc6 {[%emt 0:00:05]} 40. Ke2 {[%emt 0:00:00]} Kb5 {[%emt 0:00:00]} 41. Kd3 {[%emt 0:01:15]} Kb4 {[%emt 0:01:18]} 42. Bc7 {[%emt 0:01:10]} Kb3 {[%emt 0:00:36]} 43. Ba5 {[%emt 0:00:30]} Kb2 {[%emt 0:00:24]} 44. Kd2 {[%emt 0:01:06]} Bd6 {[%emt 0:03:48]} 45. Bc3+ {[%emt 0:01:47]} Kb3 {[%emt 0:00:26]} 46. Kd3 {[%emt 0:00:28]} Bc7 {[%emt 0:00:05]} 47. Be1 {[%emt 0:00:55]} Kb2 {[%emt 0:00:06]} 48. Bh4 {[%emt 0:00:32]} Ba5 {[%emt 0:00:53]} 49. Be7 {[%emt 0:00:44]} Kc1 {[%emt 0:00:18]} 50. Ke2 $1 {[%emt 0:00:12]} Kc2 {[%emt 0:00:06]} 51. Bf6 {[%emt 0:01:16]} Bb4 {[%emt 0:01:00]} 52. Bd8 {[%emt 0:00:21] Weighted Error Value: White=0.09 (flawless) /Black=0.07 (flawless)} 1/2-1/2

[Event "European Women-ch 2023"]
[Site "Petrovac"]
[Date "2023.03.21"]
[Round "4.5"]
[White "Lehaci, Miruna-Daria"]
[Black "Hapala, Elisabeth"]
[Result "1-0"]
[ECO "B44"]
[WhiteElo "2202"]
[BlackElo "2072"]
[Annotator "TA"]
[PlyCount "71"]
[EventDate "2023.03.15"]
[EventType "swiss"]
[EventCountry "MNE"]
[SourceTitle "playchess.com"]
[Source "ChessBase"]
[SourceQuality "1"]
[TimeControl "40/5400+30:1800+30"]

{[%evp 9,71,7,40,35,34,34,48,30,52,43,50,42,72,79,83,82,140,141,139,105,108,108,107,107,129,113,105,105,85,47,115,40,54,37,128,143,205,206,172,38,72,60,239,208,291,63,303,176,152,176,242,112,492,489,887,883,777,795,5610,5602,29990,29991,29996,29997]} 1. e4 {[%emt 0:00:02]} c5 {[%emt 0:00:04]} 2. Nf3 {[%emt 0:00:04]} e6 {[%emt 0:00:03]} 3. d4 {[%emt 0:00:03]} cxd4 {[%emt 0:00:04]} 4. Nxd4 {[%emt 0:00:04]} Nc6 {[%emt 0:00:13]} 5. Bf4 {[%emt 0:00:06]} a6 {[%emt 0:05:41]} (5... d6 $5 {[%cal Rc6d4]}) 6. Nxc6 {[%emt 0:00:06] B44: Sicilian: Taimanov: 5 Nb5.} bxc6 {[%emt 0:00:37]} 7. Bd3 {[%emt 0:00:07]} d5 {[%emt 0:01:21]} 8. Nd2 {[%emt 0:00:56] White is slightly better.} Nf6 {[%emt 0:01:10]} 9. O-O {[%emt 0:00:49]} Be7 {[%emt 0:04:12]} 10. c4 {[%emt 0:07:03] [#]} d4 $146 {[%emt 0:09:15]} ({Predecessor:} 10... O-O 11. Rc1 Qb6 12. b3 dxe4 13. Nxe4 c5 14. Nxf6+ Bxf6 15. Qf3 Bb7 16. Qg3 Qc6 {½-½ Bosnjak,P (2177)-Ivekovic,T (2053) CRO-chT U20 23rd 2014 (11.5)}) 11. e5 {[%emt 0:05:38]} Nd7 {[%emt 0:00:05]} 12. Ne4 {[%emt 0:01:14]} Nc5 {[%emt 0:11:10]} (12... Rb8 $142) 13. Nxc5 $16 {[%emt 0:02:05]} Bxc5 {[%emt 0:00:05]} 14. Qg4 {[%emt 0:00:14]} Kf8 {[%emt 0:15:12]} 15. Be4 {[%emt 0:03:34]} Bd7 {[%emt 0:04:37]} 16. Rad1 {[%emt 0:05:28][%cal Ob2b4]} h5 {[%emt 0:07:39]} 17. Qf3 {[%emt 0:01:23] b4 is the strong threat.} Qb6 {[%emt 0:02:33]} 18. Bc1 {[%emt 0:06:40]} Be8 {[%emt 0:11:09]} 19. Rd3 {[%emt 0:04:33][%cal Ob2b4]} Rd8 {[%emt 0:00:59]} ({Black should try} 19... Be7 $1 $14) 20. Rfd1 {[%emt 0:14:30]} (20. Bg5 $16 Rc8 21. Rb1) 20... Be7 $14 {[%emt 0:00:25]} 21. Qf4 {[%emt 0:03:47]} c5 {[%emt 0:08:17]} (21... h4 $14) 22. Rb3 $1 $16 {[%emt 0:05:18]} Qc7 {[%emt 0:00:00]} (22... Qa5 $16) 23. Rb7 $18 {[%emt 0:00:17]} Qc8 {[%emt 0:00:00] [#]} 24. Ra7 {[%emt 0:00:55]} (24. Rd3 $1 $18) 24... Bc6 {[%emt 0:00:00]} 25. Qf3 {[%emt 0:05:06]} (25. Bxc6 Qxc6 26. b4 Rg8 $11) 25... Bxe4 {[%emt 0:10:24]} (25... Rd7 $14 26. Rxd7 Bxd7) 26. Qxe4 $40 {[%emt 0:00:05][%mdl 128] Rd3 would be deadly. White wants a kill.} h4 {[%emt 0:00:34]} 27. Bd2 $2 {[%emt 0:03:30]} (27. Rd3 $18 Qb8 28. Rxa6) 27... Rh5 $2 {[%emt 0:01:05]} (27... Qb8 $1 $14 28. Rxa6 (28. Rb7 Qa8 $11) 28... h3) 28. Ba5 {[%emt 0:01:43]} (28. Bg5 $142 Bxg5 29. Qf3) 28... Re8 {[%emt 0:00:06] [#]} 29. Bc7 {[%emt 0:00:49][%cal Ba5c7,Bc7d6,Bd6e7][%mdl 32] Repels Qb8. White is much more active.} g6 {[%emt 0:03:38]} (29... Kg8 $142 30. h3 Qd7) 30. Rd3 {[%emt 0:01:58]} (30. b4 $18 {is more deadly.}) 30... h3 $2 {[%emt 0:03:22][%mdl 8192]} 31. Rf3 {[%emt 0:05:39]} (31. gxh3 Kg7 $16) (31. Rxh3 Rxh3 32. gxh3 Qd7 $16) 31... Kg7 {[%emt 0:01:19]} (31... Rf5 $142 32. Rxh3 Bg5 33. Bd6+ Kg7) 32. Bd6 {[%emt 0:00:53]} (32. Rxh3 Rxh3 33. gxh3 Rh8 $16) (32. gxh3 Rf5 $14) 32... Qd8 {[%emt 0:00:08]} 33. g4 {[%emt 0:01:24]} (33. Rxa6 Bxd6 34. Rxd6 Qg5 $17) (33. gxh3 Rf5 $16) 33... Rh4 {[%emt 0:00:30]} 34. Qf4 {[%emt 0:00:35]} (34. Rxa6 $2 Bxd6 35. Qf4 (35. exd6 $2 {loses.} Qg5 $19) 35... Be7 36. Qxf7+ Kh8 $19) 34... Kh8 {[%emt 0:01:00]} 35. Bxe7 {[%emt 0:01:03]} ({Weaker is} 35. Rxa6 Rf8 36. Ra7 Bxd6 $18) 35... Qa5 {[%emt 0:00:29]} 36. Qf6+ {[%emt 0:00:22] Weighted Error Value: White=0.33/Black=0.80} (36. Bxh4 $2 Qe1#) 1-0

[Event "European Women-ch 2023"]
[Site "Petrovac"]
[Date "2023.03.21"]
[Round "4.6"]
[White "Javakhishvili, Lela"]
[Black "Vega Gutierrez, Sabrina"]
[Result "1/2-1/2"]
[ECO "E07"]
[WhiteElo "2443"]
[BlackElo "2361"]
[Annotator "TA"]
[PlyCount "92"]
[EventDate "2023.03.15"]
[EventType "swiss"]
[EventCountry "MNE"]
[SourceTitle "playchess.com"]
[Source "ChessBase"]
[SourceQuality "1"]
[TimeControl "40/5400+30:1800+30"]

{[%evp 18,92,16,5,30,11,20,20,16,12,18,17,20,20,34,34,28,20,21,10,17,10,10,9,7,7,7,0,0,0,0,0,7,11,1,0,7,7,7,7,7,7,7,0,11,0,16,0,6,0,0,0,0,0,0,0,0,0,0,0,0,0,0,0,0,0,0,0,0,0,0,0,0,0,0,0,0]} 1. c4 {[%emt 0:00:06]} e6 {[%emt 0:00:07]} 2. g3 {[%emt 0:00:11]} d5 {[%emt 0:00:08]} 3. Bg2 {[%emt 0:00:08]} Nf6 {[%emt 0:00:11]} 4. Nf3 {[%emt 0:00:11]} Be7 {[%emt 0:01:21]} 5. O-O {[%emt 0:00:09]} O-O {[%emt 0:00:05]} 6. d4 {[%emt 0:00:15]} c6 {[%emt 0:00:13]} 7. b3 {[%emt 0:00:16]} b6 {[%emt 0:00:28]} 8. Bb2 {[%emt 0:00:08]} Nbd7 {[%emt 0:00:42]} 9. Nc3 {[%emt 0:01:23]} Ba6 {[%emt 0:00:43] is the new trend.} 10. Qd3 {[%emt 0:00:35]} Rc8 {[%emt 0:15:12] E07: Closed Catalan: Main Line (5 Nf3 0-0 6 0-0 Nbd7).} 11. Rac1 {[%emt 0:03:35]} Qc7 {[%emt 0:10:31]} 12. e4 {[%emt 0:07:53]} dxe4 {[%emt 0:07:00]} 13. Nxe4 {[%emt 0:00:07] [#]} c5 $146 {[%emt 0:01:32]} ({Predecessor:} 13... Nxe4 14. Qxe4 Nf6 15. Qe2 Nd7 16. Rfd1 Bf6 17. Rc2 Rcd8 18. Rcd2 Qc8 19. Ne1 Bb7 {1-0 Donner,J-Capelan,G GER-ch52 International01 1971 (7)}) 14. dxc5 {[%emt 0:06:14]} Nxc5 {[%emt 0:01:40]} 15. Nxc5 {[%emt 0:00:21]} bxc5 {[%emt 0:04:55]} 16. Be5 {[%emt 0:08:04]} Qb6 {[%emt 0:02:55]} 17. Ng5 {[%emt 0:02:05] [#] And now Bxf6 would win.} Rfd8 {[%emt 0:01:38] The position is equal.} 18. Qc2 {[%emt 0:02:16]} h6 {[%emt 0:00:40]} 19. Ne4 {[%emt 0:03:35]} Bb7 {[%emt 0:12:42]} 20. Nxf6+ {[%emt 0:12:03]} Bxf6 {[%emt 0:00:09]} 21. Bxf6 {[%emt 0:00:19]} gxf6 {[%emt 0:00:10]} 22. Rcd1 {[%emt 0:03:11]} Kg7 {[%emt 0:13:34]} 23. Bxb7 {[%emt 0:06:33]} Qxb7 {[%emt 0:00:01]} 24. Qe2 {[%emt 0:04:33]} Qc7 {[%emt 0:02:11]} 25. Qg4+ {[%emt 0:02:56]} Kh7 {[%emt 0:00:14]} 26. Rfe1 {[%emt 0:02:20]} Rxd1 {[%emt 0:02:23]} 27. Rxd1 {[%emt 0:00:58]} Rd8 {[%emt 0:00:02]} 28. Rxd8 {[%emt 0:07:38]} Qxd8 $11 {[%emt 0:00:03][%mdl 4096] Endgame KQ-KQ} 29. Qh5 {[%emt 0:07:54]} Qc7 {[%emt 0:00:03]} 30. Qf3 {[%emt 0:00:59]} Kg7 {[%emt 0:01:15]} 31. Qc3 {[%emt 0:01:12]} a5 {[%emt 0:06:33]} 32. a3 {[%emt 0:01:12]} Qd8 {[%emt 0:07:17]} 33. h4 {[%emt 0:01:22]} e5 {[%emt 0:00:56]} 34. Kg2 {[%emt 0:04:12]} e4 {[%emt 0:05:00]} 35. f3 {[%emt 0:09:38]} Qd1 {[%emt 0:01:51] [#] Threatens to win with ...Qe2+.} (35... Qd3 36. Qxd3 exd3 37. Kf2 $18) 36. fxe4 {[%emt 0:01:50]} (36. Qxa5 {leads to mate.} exf3+ 37. Kh2 Qe2+ 38. Kh3 f2 39. h5 f1=Q+ 40. Kh4 Qh1#) 36... Qe2+ {[%emt 0:00:02]} 37. Kg1 {[%emt 0:00:46]} Qxe4 {[%emt 0:00:03]} 38. Kf2 {[%emt 0:00:50]} h5 {[%emt 0:03:14]} 39. Qe3 {[%emt 0:00:50]} Qf5+ {[%emt 0:01:09]} 40. Kg2 {[%emt 0:00:00]} Qc2+ {[%emt 0:00:00]} 41. Qf2 {[%emt 0:06:42]} Qe4+ {[%emt 0:02:14]} 42. Kh2 {[%emt 0:01:33]} Qe5 {[%emt 0:00:16]} 43. Qd2 {[%emt 0:01:12]} Qe4 {[%emt 0:03:30]} 44. Qxa5 {[%emt 0:02:23]} Qe2+ {[%emt 0:00:15]} 45. Kg1 {[%emt 0:00:55]} Qe3+ {[%emt 0:00:12]} 46. Kg2 {[%emt 0:00:07]} Qe2+ {[%emt 0:00:06] Weighted Error Value: White=0.03 (flawless) /Black=0.02 (flawless)} 1/2-1/2

[Event "European Women-ch 2023"]
[Site "Petrovac"]
[Date "2023.03.21"]
[Round "4.6"]
[White "Mammadova, Gulnar"]
[Black "Kubicka, Anna"]
[Result "1/2-1/2"]
[ECO "A28"]
[WhiteElo "2358"]
[BlackElo "2211"]
[Annotator "TA"]
[PlyCount "108"]
[EventDate "2023.03.15"]
[EventType "swiss"]
[EventCountry "MNE"]
[SourceTitle "playchess.com"]
[Source "ChessBase"]
[SourceQuality "1"]
[TimeControl "40/5400+30:1800+30"]

{[%evp 9,108,24,31,22,29,6,0,21,31,28,40,15,20,21,23,22,27,20,24,23,38,27,27,29,31,33,31,18,90,86,84,75,77,81,74,72,82,71,66,72,65,34,33,0,0,0,0,0,126,126,123,125,126,126,126,101,126,126,126,126,126,126,126,126,126,126,126,126,126,76,76,0,0,0,5,5,76,5,6,0,24,0,6,6,6,6,54,0,0,0,0,0,0,0,0,0,0,0,0,0,0]} 1. c4 {[%emt 0:00:03] ChessBase II} e5 {[%emt 0:00:16]} 2. Nf3 {[%emt 0:00:07]} Nc6 {[%emt 0:00:41]} 3. Nc3 {[%emt 0:00:08]} Nf6 {[%emt 0:00:17]} 4. e3 {[%emt 0:00:17]} Be7 {[%emt 0:03:18]} 5. Qb3 {[%emt 0:00:23]} O-O {[%emt 0:02:12]} 6. Be2 {[%emt 0:00:29] A28: English Opening: Four Knights Variation.} h6 {[%emt 0:06:58]} 7. d3 {[%emt 0:05:09]} d6 {[%emt 0:03:52]} 8. O-O {[%emt 0:01:15] [#]} Rb8 $146 {[%emt 0:01:38]} ({Predecessor:} 8... b6 9. Nd5 Re8 10. Bd2 e4 11. Ne1 exd3 12. Bf3 Nxd5 13. Bxd5 Bd7 14. c5 Rf8 15. cxd6 Bxd6 16. Rc1 Qe8 17. Nxd3 Rd8 18. Bc3 Ne7 19. Bf3 Ba4 20. Qc4 {½-½ Cornette,M (2590)-Flom,G (2451) FRA-chT Top 12 2015 (2.3)}) 9. a3 {[%emt 0:02:32]} Be6 {[%emt 0:02:02]} 10. Nd5 {[%emt 0:05:36]} b5 {[%emt 0:04:19] Hoping for ...bxc4.} 11. Qc2 {[%emt 0:01:40]} bxc4 {[%emt 0:22:56][%mdl 64] Remove Defender} (11... Nxd5 $2 12. cxd5 Bxd5 13. e4 $18) 12. dxc4 {[%emt 0:01:11]} e4 {[%emt 0:01:29]} (12... Nxd5 13. cxd5 Bxd5 14. e4 Bxe4 15. Qxe4 $18) 13. Nxf6+ {[%emt 0:06:07]} Bxf6 {[%emt 0:00:05]} 14. Qxe4 {[%emt 0:02:37] Black must now prevent Bd3.} d5 {[%emt 0:03:07]} 15. Qc2 {[%emt 0:02:25] next Rd1 is good for White.} dxc4 {[%emt 0:09:40]} 16. Bxc4 {[%emt 0:02:38]} Bxc4 {[%emt 0:00:11]} 17. Qxc4 {[%emt 0:00:04]} Na5 {[%emt 0:00:25]} 18. Qc2 {[%emt 0:00:16]} Nb3 {[%emt 0:03:06]} (18... Qd5 $1 $11) 19. Rb1 $16 {[%emt 0:00:16][%cal Ba1b1,Bb1d1,Bd1d3,Bd3c3,Bc3c7][%mdl 32]} Qe7 {[%emt 0:01:36]} 20. Bd2 {[%emt 0:06:10]} a5 {[%emt 0:06:00]} 21. Rfd1 {[%emt 0:08:25]} Rfd8 {[%emt 0:03:01]} 22. Bc3 {[%emt 0:03:49]} Rxd1+ {[%emt 0:02:09]} 23. Rxd1 {[%emt 0:00:09]} (23. Qxd1 $6 Bxc3 24. bxc3 Qxa3 $11) 23... Qc5 {[%emt 0:00:07]} 24. Rd3 {[%emt 0:03:04]} Qc4 {[%emt 0:04:24]} 25. Nd2 {[%emt 0:05:55]} (25. e4 $5 {[%cal Re4e5]}) 25... Nxd2 {[%emt 0:00:52]} 26. Qxd2 {[%emt 0:00:21] Strongly threatening Bxf6.} (26. Rxd2 $5 {[%cal Rc3f6]} Bxc3 27. g3 $14 (27. bxc3 Qxc3 28. h4 Qxa3 $11)) 26... Bxc3 {[%emt 0:01:45]} 27. Rxc3 $14 {[%emt 0:00:16][%mdl 4096] Endgame KQR-KQR} Qa2 {[%emt 0:00:28]} 28. Rxc7 {[%emt 0:11:40]} Qxb2 {[%emt 0:03:30] [#]} (28... Rxb2 $11 29. Qd8+ (29. Qxa5 $2 Rb1+) 29... Kh7 30. Qd3+ g6) 29. Rc8+ $3 $16 {[%emt 0:02:24][%mdl 576] Deflection} Kh7 {[%emt 0:00:04]} 30. Qd3+ {[%emt 0:00:22]} (30. Qxa5 $2 {gets mated.} Qb1+) 30... g6 {[%emt 0:00:11] ( -> ...Qa1+)} 31. Rxb8 {[%emt 0:00:21]} Qxb8 {[%emt 0:00:06] KQ-KQ} 32. h4 {[%emt 0:01:11]} h5 {[%emt 0:02:59]} 33. Qd5 {[%emt 0:02:12][%csl LRa5,LRf7]} Qc7 {[%emt 0:00:22]} 34. a4 {[%emt 0:00:12]} Kg8 {[%emt 0:00:36]} 35. g3 {[%emt 0:00:15] White is more active.} Qb6 {[%emt 0:03:07]} 36. Kg2 {[%emt 0:01:32]} Qb4 {[%emt 0:02:13]} 37. Qd8+ {[%emt 0:03:28]} Kh7 {[%emt 0:00:12]} 38. Qd4 {[%emt 0:01:23] Repels Qe4+} Qb7+ {[%emt 0:00:29]} 39. e4 {[%emt 0:00:52]} ({White should try} 39. Kf1) 39... Qb4 {[%emt 0:01:49] [#]} 40. Qd5 {[%emt 0:00:00]} (40. Qxb4 $1 $16 {Intending Qf8 and mate.} axb4 41. a5) 40... Kg7 $11 {[%emt 0:00:00]} 41. Qc6 {[%emt 0:03:59]} Qe1 {[%emt 0:02:08]} 42. Qc4 {[%emt 0:01:07]} Qb4 {[%emt 0:06:58] [#]} (42... Qa1 $11) 43. Qc2 {[%emt 0:00:59]} (43. Qxb4 $1 $16 {Threatening mate with Qe7.} axb4 44. a5) 43... Qe1 {[%emt 0:01:09]} 44. Kf3 {[%emt 0:01:33]} Kg8 {[%emt 0:00:24]} 45. Kf4 {[%emt 0:02:13]} Qb4 {[%emt 0:02:14]} 46. Ke3 {[%emt 0:01:51]} Qa3+ {[%emt 0:00:36]} 47. Ke2 {[%emt 0:01:39]} Qb4 {[%emt 0:00:53]} (47... Qa1 $11 {feels stronger.}) 48. e5 {[%emt 0:01:03]} (48. Kf1 $14) 48... Qd4 {[%emt 0:00:52] The position is equal.} 49. f4 {[%emt 0:00:22]} Qd5 {[%emt 0:00:18] And now ...Qg2+ would win.} 50. Ke3 {[%emt 0:00:48]} Kg7 {[%emt 0:01:20]} 51. Qc3 {[%emt 0:03:41]} Kh7 {[%emt 0:00:48]} 52. Qc2 {[%emt 0:01:46]} Kg8 {[%emt 0:04:53]} 53. Qc8+ {[%emt 0:04:52]} Kg7 {[%emt 0:00:10]} 54. Qc2 {[%emt 0:01:50]} Kg8 {[%emt 0:00:58] Weighted Error Value: White=0.10 (very precise) /Black=0.12 (very precise)} 1/2-1/2